bitfinex/quotes_SOLUSD_20220129
["timestamp","ask_amount","ask_price","bid_price","bid_amount"]
[1643447785287,0.25,96.028,95.963,1.69831414]
[1643447785486,0.25,96.028,95.958,1.44831414]
[1643447785887,44.13371504,96.038,95.961,1.44831414]
[1643447786088,44.13371504,96.038,95.963,1.44831414]
[1643447786287,44.13371504,96.038,95.967,1.44831414]
[1643447786487,44.13371504,96.038,95.969,1.44831414]
[1643447786890,6.0,96.028,95.968,1.44831414]
[1643447787287,0.25,96.027,95.968,1.44831414]
[1643447787490,6.25,96.027,95.968,1.44831414]
[1643447788188,6.25,96.027,95.952,22.5801]
[1643447788189,6.25,96.027,95.971,1.44831414]
[1643447788389,6.25,96.027,95.973,1.44831414]
[1643447788790,6.25,96.027,95.974,0.25]
[1643447790796,6.25,96.027,95.973,0.25]
[1643447791200,6.0,96.027,95.968,1.44831414]
[1643447791599,43.88371504,96.038,95.972,1.44831414]
[1643447791600,6.0,96.028,95.972,1.44831414]
[1643447791799,6.0,96.028,95.97,1.44831414]
[1643447792099,6.0,96.028,95.968,1.44831414]
[1643447792301,6.0,96.028,95.969,1.44831414]
[1643447792700,0.25,96.027,95.967,1.44831414]
[1643447793202,0.25,96.027,95.964,25.92141414]
[1643447793401,0.25,96.027,95.965,103.4]
[1643447793803,0.25,96.027,95.968,1.44831414]
[1643447794002,6.0,96.041,95.968,1.44831414]
[1643447794202,6.0,96.041,95.97,1.44831414]
[1643447794402,6.0,96.041,95.969,0.25]
[1643447794403,6.0,96.041,95.971,0.25]
[1643447794604,6.0,96.041,95.969,1.44831414]
[1643447794901,38.18808723,96.04,95.97,0.25]
[1643447795102,6.0,96.03,95.97,0.25]
[1643447795302,0.25,96.029,95.97,0.25]
[1643447795903,0.25,96.029,95.971,1.44831414]
[1643447796305,0.25,96.029,95.972,0.25]
[1643447796506,0.25,96.04,95.972,0.25]
[1643447797404,0.25,96.04,95.97,0.25]
[1643447797604,0.25,96.04,95.97,1.69831414]
[1643447797804,0.25,96.04,95.972,1.44831414]
[1643447798005,0.25,96.04,95.97,1.44831414]
[1643447798205,0.25,96.04,95.971,1.44831414]
[1643447798406,0.25,96.04,95.972,1.69831414]
[1643447798616,6.0,96.041,95.972,1.44831414]
[1643447798812,15.629,96.07,95.983,103.4]
[1643447799010,6.0,96.06,95.985,103.4]
[1643447799411,6.0,96.06,95.986,0.25]
[1643447799710,6.0,96.059,95.986,0.25]
[1643447800112,6.0,96.058,95.986,1.44831414]
[1643447800311,6.0,96.058,95.986,1.69831414]
[1643447800513,6.0,96.058,95.986,0.25]
[1643447801319,0.25,96.057,95.986,0.25]
[1643447801712,0.25,96.057,95.985,103.4]
[1643447801915,0.25,96.057,95.985,1.44831414]
[1643447802114,0.25,96.057,95.984,1.44831414]
[1643447802315,27.93099142,96.057,95.97,1.44831414]
[1643447802514,27.93099142,96.057,95.946,103.4]
[1643447802515,6.0,96.047,95.967,1.44831414]
[1643447802714,36.47945845,96.046,95.97,1.44831414]
[1643447802914,42.72945845,96.046,95.971,1.44831414]
[1643447803114,42.72945845,96.046,95.968,1.44831414]
[1643447803316,42.72945845,96.046,95.966,1.44831414]
[1643447803614,42.72945845,96.046,95.965,1.44831414]
[1643447803817,22.623,96.045,95.962,1.44831414]
[1643447804016,6.0,96.035,95.966,1.44831414]
[1643447804214,6.0,96.035,95.969,1.44831414]
[1643447804415,6.0,96.035,95.958,103.4]
[1643447804416,0.25,96.034,95.97,1.44831414]
[1643447804617,0.25,96.034,95.971,1.44831414]
[1643447804816,0.25,96.034,95.972,0.25]
[1643447805018,0.25,96.034,95.97,1.44831414]
[1643447805624,2.95669142,96.033,95.963,1.44831414]
[1643447805822,0.25,96.032,95.954,1.44831414]
[1643447806022,6.0,96.023,95.945,1.44831414]
[1643447806223,6.0,96.023,95.944,1.44831414]
[1643447806426,6.25,96.022,95.941,1.44831414]
[1643447806623,6.0,96.012,95.942,1.44831414]
[1643447806824,33.36465791,96.011,95.942,1.44831414]
[1643447807024,6.0,96.001,95.942,1.44831414]
[1643447807225,6.0,96.001,95.947,1.44831414]
[1643447807425,6.0,96.001,95.948,1.44831414]
[1643447807924,6.0,96.001,95.946,1.44831414]
[1643447808125,6.0,96.001,95.947,1.44831414]
[1643447808324,0.25,96.0,95.947,1.44831414]
[1643447808524,0.25,96.0,95.945,1.44831414]
[1643447808724,0.25,96.0,95.946,1.44831414]
[1643447809144,0.25,96.0,95.948,1.44831414]
[1643447809953,0.25,96.0,95.949,1.44831414]
[1643447810147,0.25,96.0,95.95,1.44831414]
[1643447810352,0.25,96.0,95.951,1.44831414]
[1643447810548,0.25,96.0,95.952,1.44831414]
[1643447810946,0.25,96.0,95.95,1.44831414]
[1643447811147,6.0,96.001,95.95,1.44831414]
[1643447811551,6.0,96.001,95.957,1.44831414]
[1643447812347,0.25,96.0,95.955,1.44831414]
[1643447812552,0.25,96.0,95.954,1.44831414]
[1643447812750,0.25,96.0,95.953,1.44831414]
[1643447813148,0.25,96.0,95.952,1.44831414]
[1643447813351,0.25,96.0,95.945,1.44831414]
[1643447813552,6.25,96.0,95.943,1.44831414]
[1643447813950,6.25,96.0,95.942,1.44831414]
[1643447814852,6.25,96.0,95.941,1.44831414]
[1643447815655,6.25,96.0,95.94,1.44831414]
[1643447817056,6.25,96.0,95.939,1.44831414]
[1643447817254,6.25,96.0,95.936,1.44831414]
[1643447817656,6.25,96.0,95.935,1.44831414]
[1643447817855,6.25,96.0,95.937,1.44831414]
[1643447819260,6.25,96.0,95.942,1.44831414]
[1643447819763,6.25,96.0,95.941,1.44831414]
[1643447820157,6.25,96.0,95.936,1.44831414]
[1643447820358,6.25,96.0,95.935,1.44831414]
[1643447820560,24.588,95.999,95.939,1.44831414]
[1643447820861,24.588,95.999,95.937,1.44831414]
[1643447821058,6.0,95.989,95.937,1.44831414]
[1643447821259,6.0,95.989,95.934,1.44831414]
[1643447821660,6.0,95.989,95.932,1.44831414]
[1643447822263,0.25,95.99,95.931,1.44831414]
[1643447822464,24.5044,95.988,95.924,1.44831414]
[1643447822662,24.5044,95.988,95.923,1.44831414]
[1643447822862,24.5044,95.988,95.921,1.44831414]
[1643447823063,24.5044,95.988,95.922,1.44831414]
[1643447823263,24.5044,95.988,95.921,1.44831414]
[1643447823862,24.5044,95.988,95.926,1.44831414]
[1643447824263,0.25,95.99,95.926,1.44831414]
[1643447824464,24.1126,96.01,95.936,6.0]
[1643447824663,6.0,96.001,95.933,1.44831414]
[1643447824965,6.0,96.0,95.939,6.0]
[1643447825162,6.0,96.0,95.933,1.44831414]
[1643447825362,6.0,96.0,95.932,1.44831414]
[1643447825762,6.25,96.0,95.932,1.44831414]
[1643447826362,6.25,96.0,95.931,1.44831414]
[1643447826563,6.25,96.0,95.923,1.44831414]
[1643447826763,23.7752,95.999,95.922,1.44831414]
[1643447826962,23.7752,95.999,95.925,1.44831414]
[1643447827168,6.0,95.989,95.922,1.44831414]
[1643447827362,6.0,95.989,95.921,24.2993]
[1643447827363,6.0,95.989,95.921,25.74761414]
[1643447828764,6.0,95.989,95.924,1.44831414]
[1643447828966,6.0,95.989,95.922,1.44831414]
[1643447829168,6.0,95.989,95.921,25.74761414]
[1643447829567,6.0,96.001,95.933,1.44831414]
[1643447829770,6.0,96.001,95.94,1.44831414]
[1643447829967,6.0,96.001,95.939,1.44831414]
[1643447830169,6.0,96.001,95.942,1.44831414]
[1643447830569,6.0,96.001,95.921,24.2993]
[1643447830570,6.0,96.001,95.941,1.44831414]
[1643447830768,6.0,96.001,95.921,24.2993]
[1643447830769,23.5738,96.0,95.937,1.44831414]
[1643447831169,6.0,95.99,95.935,1.44831414]
[1643447831369,6.25,95.99,95.935,1.44831414]
[1643447832380,6.25,95.99,95.939,1.44831414]
[1643447833571,6.25,95.99,95.942,1.44831414]
[1643447833772,6.25,95.99,95.94,1.44831414]
[1643447833972,6.25,95.99,95.939,1.44831414]
[1643447834173,6.25,95.99,95.941,1.44831414]
[1643447834772,6.25,95.99,95.943,1.44831414]
[1643447836073,6.25,95.99,95.944,1.44831414]
[1643447836275,6.25,95.99,95.943,1.44831414]
[1643447836473,6.25,95.99,95.939,1.44831414]
[1643447836676,6.25,95.99,95.938,1.44831414]
[1643447838774,6.25,95.99,95.937,1.44831414]
[1643447838975,6.25,95.99,95.938,1.44831414]
[1643447839976,6.25,95.99,95.939,1.44831414]
[1643447840176,6.25,95.99,95.931,6.0]
[1643447840177,6.25,95.99,95.938,1.44831414]
[1643447840578,6.25,95.99,95.94,1.44831414]
[1643447840975,6.25,95.99,95.931,6.0]
[1643447840976,6.0,95.99,95.952,1.44831414]
[1643447841175,6.0,96.022,95.952,1.44831414]
[1643447841376,6.0,96.022,95.962,6.0]
[1643447841575,6.0,96.021,95.965,6.0]
[1643447841775,6.0,96.021,95.962,6.0]
[1643447841974,6.0,96.021,95.956,1.44831414]
[1643447842374,6.0,96.017,95.966,6.0]
[1643447842575,6.0,96.017,95.957,1.44831414]
[1643447842804,24.5153,96.016,95.957,1.44831414]
[1643447842977,6.0,96.006,95.955,1.44831414]
[1643447843274,6.0,96.006,95.934,103.4]
[1643447843275,6.0,96.006,95.954,1.44831414]
[1643447844276,6.0,96.006,95.952,1.44831414]
[1643447844476,24.6796,96.005,95.949,1.44831414]
[1643447844678,24.6796,96.005,95.948,1.44831414]
[1643447844877,24.67088145,96.045,95.933,24.5257]
[1643447844878,1.41828145,96.049,95.952,1.44831414]
[1643447845079,112.8,96.05,95.964,1.44831414]
[1643447845478,23.7532,96.074,95.978,1.44831414]
[1643447845885,43.2259755,96.073,95.98,1.44831414]
[1643447846379,6.0,96.063,95.981,1.44831414]
[1643447846579,6.0,96.063,95.982,1.44831414]
[1643447846777,24.3183,96.062,95.982,1.44831414]
[1643447847078,6.0,96.052,95.982,1.44831414]
[1643447847279,6.0,96.052,95.98,0.25]
[1643447847479,6.0,96.052,95.985,6.0]
[1643447847781,6.0,96.052,95.98,0.25]
[1643447847979,23.1268,96.051,95.975,24.42811414]
[1643447848178,23.1268,96.051,95.975,22.9798]
[1643447848378,36.5158852,96.04,95.975,22.9798]
[1643447849279,36.7658852,96.04,95.975,22.9798]
[1643447849481,36.7658852,96.04,95.985,6.0]
[1643447850382,6.0,96.03,95.975,22.9798]
[1643447850782,6.25,96.03,95.975,22.9798]
[1643447851479,6.0,96.03,95.975,22.9798]
[1643447852080,23.1268,96.051,95.975,22.9798]
[1643447852585,6.0,96.041,95.975,22.9798]
[1643447852982,43.4171808,96.069,95.975,22.9798]
[1643447853180,23.663,96.068,95.975,22.9798]
[1643447853580,6.0,96.058,95.975,22.9798]
[1643447853780,23.663,96.057,95.975,22.9798]
[1643447853982,6.0,96.047,95.975,22.9798]
[1643447854180,6.0,96.047,95.975,24.42811414]
[1643447854583,6.0,96.047,95.975,22.9798]
[1643447854881,22.5656,96.046,95.975,22.9798]
[1643447855081,6.0,96.036,95.975,22.9798]
[1643447855281,33.21227323,96.035,95.975,22.9798]
[1643447855681,6.0,96.025,95.975,22.9798]
[1643447856285,0.25,96.03,95.975,22.9798]
[1643447856486,6.0,96.025,95.975,22.9798]
[1643447856683,0.25,96.03,95.975,22.9798]
[1643447857084,22.5656,96.046,95.975,22.9798]
[1643447858115,6.0,96.036,95.975,22.9798]
[1643447858315,6.0,96.07,95.985,6.0]
[1643447858614,27.33259142,96.079,95.985,6.0]
[1643447858813,27.33259142,96.079,95.98,15.08]
[1643447859014,47.65740506,96.078,95.98,15.08]
[1643447859419,2.95669142,96.077,95.98,15.08]
[1643447860019,6.0,96.067,95.98,15.08]
[1643447860220,24.9575,96.066,95.98,15.08]
[1643447860621,6.0,96.056,95.98,15.08]
[1643447860821,24.9575,96.055,95.98,15.08]
[1643447861019,6.0,96.045,95.98,15.08]
[1643447861220,46.34001034,96.044,95.98,15.08]
[1643447861621,6.0,96.034,95.98,15.08]
[1643447862020,46.34001034,96.044,95.98,15.33]
[1643447862422,6.0,96.034,95.98,15.33]
[1643447862622,6.0,96.034,95.98,15.08]
[1643447863023,6.0,96.045,95.99,6.0]
[1643447863525,6.0,96.045,95.98,15.08]
[1643447863725,6.0,96.045,95.981,24.2758]
[1643447864026,36.40950991,96.044,95.981,24.2758]
[1643447864424,36.40950991,96.044,95.942,2.67837957]
[1643447864425,6.0,96.034,95.96,1.44831414]
[1643447864625,6.0,96.033,95.96,1.44831414]
[1643447864823,8.95669142,96.033,95.956,1.44831414]
[1643447865024,23.2728,96.032,95.956,1.44831414]
[1643447865224,26.22949142,96.032,95.956,1.44831414]
[1643447865426,6.0,96.022,95.958,1.44831414]
[1643447865926,2.95669142,96.021,95.958,1.44831414]
[1643447866128,6.0,96.011,95.955,1.44831414]
[1643447866327,41.05787243,96.01,95.955,1.41495081]
[1643447866529,47.05787243,96.01,95.95,0.25]
[1643447867929,47.05787243,96.01,95.943,127.8159]
[1643447868332,47.05787243,96.01,95.944,13.02449398]
[1643447868734,47.05787243,96.01,95.943,127.8159]
[1643447871332,47.05787243,96.01,95.943,24.4159]
[1643447871833,2.95669142,96.009,95.943,24.4159]
[1643447872133,6.0,95.999,95.916,2.88815684]
[1643447872332,6.0,95.999,95.896,2.88815684]
[1643447872533,32.86919142,95.998,95.881,23.8394]
[1643447872834,15.642,95.99,95.882,2.89403391]
[1643447873032,6.0,95.989,95.882,2.89403391]
[1643447873233,6.0,95.989,95.883,13.02563005]
[1643447873234,38.96337627,95.979,95.883,13.02563005]
[1643447873635,6.0,95.969,95.883,13.02563005]
[1643447874032,6.0,95.968,95.882,13.02563005]
[1643447874232,19.8513799,95.968,95.882,13.02563005]
[1643447874434,2.95669142,95.967,95.882,13.02563005]
[1643447874635,6.0,95.957,95.882,13.02563005]
[1643447874937,6.0,95.957,95.875,13.02563005]
[1643447875138,2.95669142,95.956,95.848,2.88815684]
[1643447875335,26.56119142,95.956,95.832,2.88903948]
[1643447875535,6.0,95.946,95.849,13.02442569]
[1643447875735,15.651,95.93,95.849,13.02442569]
[1643447875934,15.651,95.93,95.829,13.02442569]
[1643447876138,6.0,95.92,95.83,25.89604601]
[1643447876335,6.25,95.92,95.831,2.88904601]
[1643447876636,6.0,95.919,95.83,23.007]
[1643447876836,39.85787795,95.909,95.83,23.007]
[1643447877036,6.0,95.899,95.83,23.007]
[1643447877239,0.25,95.898,95.831,13.00691724]
[1643447877636,0.25,95.898,95.83,23.007]
[1643447878038,0.25,95.898,95.81,15.08]
[1643447878237,9.88,95.898,95.81,15.08]
[1643447878437,9.88,95.898,95.811,13.00627517]
[1643447878641,6.0,95.888,95.811,13.00627517]
[1643447878841,0.25,95.887,95.812,103.65]
[1643447879139,0.25,95.887,95.812,0.25]
[1643447879340,0.25,95.887,95.813,13.00627517]
[1643447879741,0.25,95.887,95.814,13.25627517]
[1643447879941,0.25,95.897,95.814,13.25627517]
[1643447880143,6.0,95.898,95.815,13.00627517]
[1643447880348,6.0,95.898,95.816,0.25]
[1643447880543,6.0,95.899,95.825,6.0]
[1643447880742,6.0,95.899,95.827,103.4]
[1643447880945,6.0,95.899,95.83,6.0]
[1643447881144,6.0,95.899,95.826,24.4765]
[1643447881347,0.25,95.898,95.826,24.4765]
[1643447881543,39.85787795,95.909,95.826,24.4765]
[1643447881843,39.85787795,95.909,95.827,12.98535982]
[1643447882143,39.85787795,95.909,95.826,24.4765]
[1643447882542,6.0,95.899,95.826,24.2265]
[1643447882945,0.25,95.898,95.826,24.2265]
[1643447883345,0.25,95.898,95.836,6.0]
[1643447883546,0.25,95.898,95.826,24.2265]
[1643447883946,0.25,95.898,95.837,103.4]
[1643447884164,0.25,95.898,95.847,6.0]
[1643447884364,0.25,95.928,95.848,0.25]
[1643447884565,0.25,95.928,95.848,6.25]
[1643447884766,0.25,95.928,95.848,6.0]
[1643447884968,2.95669142,95.927,95.838,48.1957]
[1643447885366,6.0,95.917,95.838,48.1957]
[1643447885564,6.0,95.917,95.848,6.0]
[1643447885965,6.0,95.918,95.849,0.25]
[1643447887168,2.95669142,95.917,95.838,48.1957]
[1643447887367,3.20669142,95.917,95.838,48.1957]
[1643447887670,6.0,95.907,95.82,15.08]
[1643447887869,0.25,95.906,95.82,15.08]
[1643447888066,6.0,95.906,95.83,6.0]
[1643447888268,6.0,95.906,95.831,103.4]
[1643447888668,6.0,95.906,95.83,6.0]
[1643447889068,6.0,95.906,95.831,6.25]
[1643447889270,6.0,95.906,95.831,6.0]
[1643447889672,8.95669142,95.906,95.821,24.2774]
[1643447890272,0.25,95.905,95.821,24.2774]
[1643447891273,0.25,95.909,95.822,0.25]
[1643447891576,6.25,95.909,95.831,6.0]
[1643447891772,6.25,95.909,95.822,0.25]
[1643447891975,6.25,95.909,95.831,6.0]
[1643447892173,6.25,95.909,95.822,0.25]
[1643447894573,2.95669142,95.908,95.787,2.67752233]
[1643447894774,106.35669142,95.908,95.788,23.8906]
[1643447894974,35.2118353,95.897,95.788,23.8906]
[1643447895474,6.0,95.887,95.788,23.8906]
[1643447895877,9.20669142,95.886,95.788,23.8906]
[1643447896074,6.0,95.876,95.788,23.8906]
[1643447896275,0.25,95.875,95.788,23.8906]
[1643447896679,6.25,95.875,95.788,23.8906]
[1643447896877,0.25,95.875,95.788,23.8906]
[1643447897678,0.25,95.875,95.789,0.25]
[1643447897877,0.25,95.875,95.788,23.8906]
[1643447898378,2.95669142,95.874,95.788,23.8906]
[1643447898576,37.12111672,95.863,95.788,23.8906]
[1643447898779,0.25,95.862,95.788,23.8906]
[1643447898979,6.0,95.853,95.788,23.8906]
[1643447899378,0.25,95.852,95.788,23.8906]
[1643447900980,0.25,95.852,95.773,24.2397]
[1643447902988,2.95669142,95.851,95.756,24.1332]
[1643447903189,2.95669142,95.851,95.757,2.88747641]
[1643447903389,6.0,95.841,95.756,24.1332]
[1643447903987,2.78601195,95.945,95.756,24.1332]
[1643447903988,15.08,95.89,95.77,15.08]
[1643447904187,23.6678,95.886,95.771,103.4]
[1643447904392,23.6678,95.886,95.78,6.0]
[1643447904588,23.6678,95.886,95.782,6.0]
[1643447904788,23.6678,95.886,95.783,0.25]
[1643447904990,23.6678,95.886,95.791,6.0]
[1643447905289,0.25,95.862,95.791,6.0]
[1643447906290,0.25,95.862,95.781,22.9327]
[1643447906489,0.25,95.862,95.782,0.25]
[1643447906891,6.0,95.853,95.782,0.25]
[1643447907291,0.25,95.852,95.781,22.9327]
[1643447908292,0.25,95.852,95.773,24.9759]
[1643447908495,0.25,95.852,95.783,6.0]
[1643447908692,6.0,95.853,95.783,6.0]
[1643447908891,6.0,95.853,95.784,24.4687]
[1643447910090,0.25,95.852,95.784,24.4687]
[1643447917301,6.0,95.853,95.785,0.25]
[1643447917502,48.45846057,95.9,95.794,6.0]
[1643447917700,33.37846057,95.9,95.794,6.0]
[1643447918099,17.72046057,95.9,95.794,6.0]
[1643447918300,22.8779,95.899,95.795,23.4716]
[1643447918800,6.0,95.853,95.795,23.4716]
[1643447919403,6.0,95.853,95.796,0.25]
[1643447919603,6.0,95.853,95.795,23.4716]
[1643447919801,6.0,95.853,95.796,0.25]
[1643447920001,6.0,95.853,95.795,23.4716]
[1643447920202,6.0,95.853,95.796,0.25]
[1643447920601,15.659,95.89,95.796,0.25]
[1643447921205,15.659,95.89,95.797,2.89625554]
[1643447921403,15.659,95.89,95.798,0.25]
[1643447922205,0.25,95.862,95.798,0.25]
[1643447922603,0.25,95.862,95.799,2.8997541]
[1643447922805,0.25,95.862,95.8,0.25]
[1643447923206,0.25,95.862,95.801,2.8997541]
[1643447923409,6.0,95.853,95.795,23.4716]
[1643447923806,0.25,95.852,95.795,23.4716]
[1643447924206,0.25,95.852,95.796,2.89982075]
[1643447924607,6.0,95.843,95.795,23.4716]
[1643447924809,0.25,95.842,95.795,23.4716]
[1643447925332,0.25,95.842,95.796,0.25]
[1643447925506,0.25,95.842,95.795,23.4716]
[1643447926107,0.25,95.852,95.795,23.4716]
[1643447926307,0.25,95.852,95.78,17.96815684]
[1643447926508,2.95669142,95.849,95.78,2.88815684]
[1643447926714,2.95669142,95.849,95.781,2.90257051]
[1643447926915,6.0,95.839,95.774,24.765]
[1643447927317,0.25,95.838,95.775,2.90258546]
[1643447927516,6.25,95.838,95.775,2.90258546]
[1643447927717,6.25,95.838,95.776,0.25]
[1643447927914,6.25,95.838,95.777,2.90258546]
[1643447928115,6.0,95.828,95.777,2.90258546]
[1643447928315,42.22532642,95.827,95.775,2.90258546]
[1643447928516,6.0,95.817,95.775,2.90258546]
[1643447928715,6.0,95.817,95.774,24.765]
[1643447928914,0.25,95.816,95.775,2.9026171]
[1643447929516,0.25,95.816,95.774,24.765]
[1643447936645,0.25,95.816,95.752,2.88815684]
[1643447936844,0.25,95.816,95.753,23.3299]
[1643447937747,0.25,95.816,95.754,0.25]
[1643447938147,6.0,95.817,95.755,2.89808799]
[1643447938546,6.0,95.817,95.753,23.3299]
[1643447939146,6.0,95.817,95.763,6.0]
[1643447939350,6.0,95.817,95.764,23.6429]
[1643447940348,0.25,95.816,95.764,23.6429]
[1643447940748,6.0,95.817,95.764,23.6429]
[1643447942149,6.0,95.817,95.765,0.25]
[1643447942551,6.0,95.817,95.764,23.6429]
[1643447943352,0.25,95.816,95.764,23.6429]
[1643447945653,0.25,95.816,95.765,13.02410897]
[1643447946253,0.25,95.848,95.765,13.02410897]
[1643447946453,46.43279717,95.848,95.765,13.02410897]
[1643447946755,72.15118859,95.848,95.765,13.02410897]
[1643447946955,6.0,95.838,95.764,23.6429]
[1643447947353,6.0,95.837,95.764,23.6429]
[1643447948354,6.0,95.837,95.765,0.25]
[1643447949358,0.25,95.836,95.765,0.25]
[1643447949558,0.25,95.836,95.764,23.6429]
[1643447951963,0.25,95.837,95.764,23.6429]
[1643447954562,22.7563,95.837,95.764,23.6429]
[1643447954962,22.5063,95.837,95.764,23.6429]
[1643447955164,6.0,95.827,95.765,0.25]
[1643447955365,22.8485,95.847,95.765,0.25]
[1643447955564,6.0,95.837,95.765,0.25]
[1643447955764,6.0,95.837,95.766,2.90422205]
[1643447955964,6.0,95.837,95.774,6.0]
[1643447956164,6.0,95.837,95.776,6.0]
[1643447956364,6.0,95.837,95.777,0.25]
[1643447956763,0.25,95.836,95.777,0.25]
[1643447957170,6.0,95.837,95.777,0.25]
[1643447957566,6.0,95.837,95.775,23.9914]
[1643447958370,0.25,95.836,95.775,23.9914]
[1643447960071,46.18279717,95.848,95.785,6.0]
[1643447960270,46.18279717,95.848,95.786,24.3403]
[1643447960472,6.0,95.838,95.786,24.3403]
[1643447960875,6.0,95.838,95.786,24.0903]
[1643447961771,0.25,95.837,95.786,24.0903]
[1643447962573,6.0,95.838,95.786,24.0903]
[1643447962772,6.0,95.838,95.763,2.88815684]
[1643447962974,6.0,95.838,95.761,2.88815684]
[1643447962975,23.2381,95.837,95.761,2.88815684]
[1643447963177,23.2381,95.837,95.758,2.88815684]
[1643447963377,6.0,95.827,95.756,2.88815684]
[1643447963775,0.25,95.826,95.757,13.31586938]
[1643447963976,0.25,95.826,95.758,2.90604942]
[1643447964177,0.25,95.826,95.758,15.9719188]
[1643447964379,0.25,95.826,95.759,3.15604942]
[1643447964576,0.25,95.826,95.76,2.90604942]
[1643447964778,0.25,95.826,95.761,23.681]
[1643447964980,0.25,95.826,95.762,2.90604942]
[1643447967206,6.0,95.827,95.75,2.88815684]
[1643447967706,6.0,95.827,95.752,2.88815684]
[1643447967904,6.0,95.827,95.752,5.79420626]
[1643447968106,6.0,95.827,95.753,13.0649066]
[1643447968511,6.0,95.827,95.754,2.90604942]
[1643447968705,23.5019,95.826,95.754,2.90604942]
[1643447969104,36.51238756,95.815,95.755,13.0649066]
[1643447969305,0.25,95.814,95.755,13.0649066]
[1643447969509,0.25,95.814,95.756,2.90604942]
[1643447969704,0.25,95.814,95.756,3.15604942]
[1643447969906,0.25,95.814,95.757,13.0649066]
[1643447970107,0.25,95.814,95.758,2.90604942]
[1643447971305,0.25,95.814,95.759,2.90604942]
[1643447971507,6.0,95.805,95.759,2.90604942]
[1643447971805,36.51238756,95.815,95.76,19.10777683]
[1643447972006,36.51238756,95.815,95.766,2.88815684]
[1643447972206,6.0,95.805,95.766,2.88815684]
[1643447972409,6.0,95.805,95.767,0.25]
[1643447972607,6.0,95.805,95.768,15.96961999]
[1643447972806,6.0,95.805,95.769,2.90604942]
[1643447973206,6.0,95.805,95.77,13.06357057]
[1643447973611,36.51238756,95.815,95.771,3.15604942]
[1643447974012,0.25,95.814,95.772,15.96961999]
[1643447974210,0.25,95.814,95.773,2.90604942]
[1643447974512,0.25,95.814,95.762,6.0]
[1643447974910,0.25,95.814,95.763,2.90489302]
[1643447975110,0.25,95.814,95.763,15.97012829]
[1643447975511,6.0,95.805,95.764,15.97012829]
[1643447975711,6.0,95.805,95.764,13.06523527]
[1643447975914,0.25,95.804,95.762,6.0]
[1643447976312,0.25,95.804,95.763,2.90504486]
[1643447976614,0.25,95.804,95.762,6.0]
[1643447976813,0.25,95.804,95.765,6.0]
[1643447977012,0.25,95.804,95.762,6.0]
[1643447978014,0.25,95.804,95.763,19.06686431]
[1643447978314,0.25,95.804,95.763,6.0]
[1643447978717,6.0,95.805,95.763,6.0]
[1643447979514,6.0,95.805,95.764,6.0]
[1643447979715,6.0,95.805,95.753,24.7417]
[1643447979919,6.0,95.805,95.754,2.90511552]
[1643447980115,0.25,95.804,95.754,15.97501513]
[1643447980316,0.25,95.804,95.755,2.90511552]
[1643447980518,0.25,95.804,95.755,15.97501513]
[1643447980916,0.25,95.804,95.756,15.97501513]